Cogmind - Beta 13 --- EXPLORER MODE // 2024.04.01 @ 01:59:10 Player: Lillian Result: Destroyed by 8R-AWN with 8R-AWN's Boregun Performance ------------- Evolutions (0) 0 Regions Visited (3) 600 Robots Destroyed (23) 115 Value Destroyed (619) 619 Prototype IDs (27) 540 Alien Tech Used (0) 0 Bonus (287) 287 TOTAL SCORE: 2161 Bonus ------- Follower Combat Kills 7 Aligned with FarCom 300 Friendly Fire -20 Cogmind --------- Core Integrity 0/250 Matter 209/300 Energy 98/100 System Corruption 5% Temperature Cool (0) Movement Walking (190) Ox1 Location -10/Exiles Parts ------- > --- POWER (1) -------- (None) > --- PROPULSION (2) --- Carbon-fiber Leg > --- UTILITY (3) ------ Large Storage Unit > --- WEAPON (2) ------- Light Cannon > --- INVENTORY (15) --- Flying Fortress v7 Heat Sink High-capacity Storage Unit Large Battery (200) Signal Interpreter Terrain Scanner Rocket Launcher Rocket Launcher Hammer Peak State ------------ > --- POWER ------------ Light Ion Engine > --- PROPULSION ------- Carbon-fiber Leg Carbon-fiber Leg > --- UTILITY ---------- Large Storage Unit Structural Scanner Seismic Detector > --- WEAPON ----------- Light Cannon Light Cannon > --- INVENTORY -------- Flying Fortress v7 Heat Sink High-capacity Storage Unit Large Battery Signal Interpreter Terrain Scanner Light Cannon Rocket Launcher Rocket Launcher Hammer Stasis Trap Stasis Trap [Rating: 16] Favorites ----------- Power Light Ion Engine Engine Light Ion Engine Propulsion Aluminum Leg Leg Aluminum Leg Utility Structural Scanner Device Structural Scanner Storage Large Storage Unit Processor Targeting Computer Weapon Light Cannon Ballistic Gun Assault Rifle Ballistic Cannon Light Cannon Build | -11 -10 -10 -10 ------- Run | Yrd Mat Min Exi Slots Evolved 1 | . 1 . . Power . | . . . . Propulsion . | . . . . Utility 1 | . 1 . . Weapon . | . . . . Parts Attached 25 | 7 11 4 3 Power 4 | 1 1 1 1 Engine 4 | 1 1 1 1 Core . | . . . . Reactor . | . . . . Propulsion 5 | 2 . 3 . Treads . | . . . . Leg 5 | 2 . 3 . Wheel . | . . . . Hover . | . . . . Flight . | . . . . Utility 11 | 2 8 . 1 Device 6 | 1 4 . 1 Storage 4 | . 4 . . Processor 1 | 1 . . . Hackware . | . . . . Protection . | . . . . Artifact . | . . . . Weapon 5 | 2 2 . 1 Energy Gun . | . . . . Energy Cannon . | . . . . Ballistic Gun 2 | 2 . . . Ballistic Cannon 3 | . 2 . 1 Launcher . | . . . . Special Weapon . | . . . . Impact Weapon . | . . . . Slashing Weapon . | . . . . Piercing Weapon . | . . . . Special Melee Weapon . | . . . . Unidentified Prototypes 1 | . . . 1 Corrupted Parts 1 | . . 1 . System Corruption 1 | . . 1 . Parts Lost 7 | . . . 7 Power 1 | . . . 1 Propulsion 1 | . . . 1 Utility 3 | . . . 3 Weapon 2 | . . . 2 Highest Loss Streak 6 | . . . 6 To Critical Strikes 1 | . . . 1 Average Slot Usage (%) 99 | . 98 100 99 Engine 11 | . 11 12 11 Leg 24 | . 25 25 24 Device 21 | . 14 25 24 Storage 11 | . 11 12 12 Processor 2 | . 10 . . Ballistic Cannon 24 | . 23 25 24 Naked Turns . | . . . . Heaviest Build 31 | 7 31 31 31 Greatest Support 30 | 20 20 30 30 Greatest Overweight (x) 1 | . 1 1 1 Average Overweight (x) . | . . 1 . Largest Inventory Capacity 15 | 5 15 15 15 Average Capacity 13 | 5 11 15 15 Most Carried 15 | 5 13 15 15 Average Carried 12 | 1 8 13 14 Final Capacity 15 | 5 15 15 15 Final Carried 14 | . 12 14 12 Class Distribution -------------------- 100% | Hacker-Mutant Dominant Class ---------------- Hacker-Mutant | -10/Materials Hacker-Mutant | -10/Mines Hacker-Mutant | -10/Exiles Resources | -11 -10 -10 -10 ----------- Run | Yrd Mat Min Exi Matter Collected 761 | 290 233 238 . Remotely . | . . . . Salvage Created 555 | 45 393 104 13 Parts 35 | 1 24 10 . Haulers Intercepted . | . . . . Recyclers Shooed . | . . . . Parts Field Recycled . | . . . . Retrieved Matter . | . . . . Parts Self-Destructed . | . . . . Prevented . | . . . . Kills | -11 -10 -10 -10 ------- Run | Yrd Mat Min Exi Combat Hostiles Destroyed 22 | 1 11 7 3 Guns 4 | 1 3 . . Cannons 18 | . 8 7 3 Classes Destroyed 6 | 1 2 2 1 Worker 1 | . . 1 . Watcher 3 | . 3 . . Swarmer 6 | . 2 4 . Grunt 12 | 1 9 2 . Demolisher 1 | . . 1 . Assembled 3 | . . . 3 Best Kill Streak 4 | 1 4 2 3 Combat Bots Only 3 | 1 3 2 3 Max Kills in Single Turn 1 | 1 1 1 1 Gunslinging . | . . . . Exploded . | . . . . Melee . | . . . . Uniques/NPCs Destroyed . | . . . . Combat | -11 -10 -10 -10 -------- Run | Yrd Mat Min Exi Hostile Shots Fired 122 | 9 21 26 66 Missed 31 | 2 6 9 14 Damage Taken 884 | 46 132 85 621 Core 252 | 27 13 9 203 Absorbed by Shields . | . . . . Ignored by Resistances 539 | 29 83 62 365 Regen/Repaired (Parts) 27 | . 27 . . Core Remaining (%) 89 | 89 . . . Volleys Fired 57 | 5 26 16 10 Largest 2 | 2 2 2 2 Hottest 70 | 40 70 70 70 Shots Fired 111 | 10 52 33 16 Gun 24 | 10 14 . . Cannon 87 | . 38 33 16 Launcher . | . . . . Special . | . . . . Kinetic 111 | 10 52 33 16 Thermal . | . . . . Explosive . | . . . . Electromagnetic . | . . . . Robot Hit Streak 16 | 9 16 10 14 Robot Miss Streak 2 | . 2 1 2 Penetration Max . | . . . . Secondary Targets . | . . . . Shots Hit Robots 84 | 9 38 24 13 Core Hits 37 | 2 18 9 8 Critical Kills . | . . . . Critical Parts Destroyed . | . . . . Critical Strikes 2 | . 1 . 1 Blast 2 | . 1 . 1 Melee Attacks . | . . . . Impact . | . . . . Slashing . | . . . . Piercing . | . . . . Sneak Attacks . | . . . . Combat Hostiles . | . . . . Follow-up Attacks . | . . . . Damage Inflicted 1412 | 93 605 444 270 Guns 211 | 93 118 . . Cannons 1201 | . 487 444 270 Explosions . | . . . . Melee . | . . . . Ramming . | . . . . Kinetic 1412 | 93 605 444 270 Thermal . | . . . . Explosive . | . . . . Electromagnetic . | . . . . Impact . | . . . . Slashing . | . . . . Piercing . | . . . . Highest Corruption 5 | . 1 2 5 Average Corruption 1 | . 1 1 2 Corruption Purged . | . . . . Corruption Blocked . | . . . . Effects 25 | . 3 10 12 Message Errors 5 | . 1 1 3 Matter Fused 3 | . 1 2 . Heat Flow Errors 3 | . . 2 1 Energy Discharges 7 | . . 1 6 Parts Fused 1 | . . 1 . Data Loss (minor) 4 | . 1 2 1 Misfires 2 | . . 1 1 Overload Shots . | . . . . Overflow Damage 24 | . 24 . . Projectiles 24 | . 24 . . Explosions . | . . . . Melee . | . . . . Knockbacks 29 | . 11 8 10 Impact . | . . . . Kinetic 25 | . 9 7 9 Secondary 4 | . 2 1 1 Self-Inflicted Damage . | . . . . Shots . | . . . . Rammed . | . . . . Targets Rammed . | . . . . Kicked . | . . . . Crushed . | . . . . Highest Temperature 251 | 12 72 251 133 Average Temperature 31 | 6 24 39 34 Received Heat Transfer 272 | 42 81 9 140 Siege Activations . | . . . . Robots Corrupted . | . . . . Combat Hostiles . | . . . . Parts Fried . | . . . . Impact Corruptions . | . . . . Robots Melted . | . . . . Combat Hostiles . | . . . . Parts Melted . | . . . . Heat Transferred . | . . . . Parts Sabotaged . | . . . . Parts Stolen . | . . . . Parts Stripped . | . . . . Power Chain Reactions . | . . . . Alert | -11 -10 -10 -10 ------- Run | Yrd Mat Min Exi Peak Influence 204 | 20 204 145 . Initial 9 | . 9 . . Average 50 | 5 78 31 . Maximum Alert Level 1 | . 1 . . Low Security (%) 97 | 100 95 100 . Level 1 2 | . 4 . . Level 2 . | . . . . Level 3 . | . . . . Level 4 . | . . . . Level 5 . | . . . . High Security . | . . . . Max Security . | . . . . Squads Dispatched 1 | . 1 . . Investigation 1 | . 1 . . Extermination . | . . . . Reinforcement . | . . . . Assault . | . . . . Garrison . | . . . . Intercept . | . . . . Searches Triggered . | . . . . Construction Impeded . | . . . . Haulers Reinforced . | . . . . Active Scanning Responses . | . . . . Cargo Convoy Interrupts . | . . . . Stealth | -11 -10 -10 -10 --------- Run | Yrd Mat Min Exi Distress Signals 2 | . 2 . . Communications Jammed . | . . . . Distress Signals . | . . . . Times Spotted 34 | 1 14 10 9 Peak Tracking Total 11 | 1 3 4 11 Tactical Retreats 2 | . . 1 1 Traps | -11 -10 -10 -10 ------- Run | Yrd Mat Min Exi Traps Triggered 1 | . 1 . . Indirectly . | . . . . Trap Hack Attempts . | . . . . Triggered . | . . . . Disarmed 4 | . 4 . . Reprogrammed 6 | . 6 . . Reused 2 | . . . 2 Traps Extracted . | . . . . Installed 2 | . . . 2 Triggered 1 | . . 1 . Most Traps Carried 2 | . . 2 2 Machines | -11 -10 -10 -10 ---------- Run | Yrd Mat Min Exi Machines Disabled 2 | . . 1 1 Max in Single Turn 1 | . . 1 1 Machines Repaired . | . . . . Machines Dismantled . | . . . . Machines Sabotaged . | . . . . Overloaded Fab Kills . | . . . . Hacking | -11 -10 -10 -10 --------- Run | Yrd Mat Min Exi Machines Accessed 15 | . 11 . 4 Terminals 8 | . 8 . . Fabricators . | . . . . Repair Stations 1 | . 1 . . Recycling Units 2 | . 2 . . Scanalyzers . | . . . . Garrison Access . | . . . . Total Hacks 71 | . 31 . 40 Successful 64 | . 24 . 40 Failed 7 | . 7 . . Catastrophic 1 | . 1 . . Database Lockouts . | . . . . Manual 1 | . . . 1 Terminals 24 | . 24 . . Fabricators . | . . . . Repair Stations 2 | . 2 . . Recycling Units 5 | . 5 . . Scanalyzers . | . . . . Garrison Access . | . . . . Terminal Hacks 57 | . 17 . 40 Record 41 | . 2 . 39 Prototype ID Bank 1 | . 1 . . Branch Access Points 1 | . 1 . . Emergency Access Points 1 | . 1 . . Terminal Index 1 | . 1 . . Locate Traps 3 | . 3 . . Disarm Traps 1 | . 1 . . Reprogram Traps 1 | . 1 . . Surveillance Status 1 | . 1 . . Patrol Status 1 | . 1 . . Hauler Manifests 2 | . 2 . . Zone Layout 2 | . 2 . . Derelict Proto ID Bank 1 | . . . 1 Fabricator Hacks . | . . . . Repair Station Hacks 2 | . 2 . . Scan Component 1 | . 1 . . Repair 1 | . 1 . . Recycling Unit Hacks 5 | . 5 . . Process 1 | . 1 . . Report Inventory 2 | . 2 . . Retrieve Matter 1 | . 1 . . Retrieve Components 1 | . 1 . . Scanalyzer . | . . . . Garrison Access Hacks . | . . . . Unauthorized Hacks . | . . . . Terminals . | . . . . Fabricators . | . . . . Repair Stations . | . . . . Recycling Units . | . . . . Scanalyzers . | . . . . Garrison Access . | . . . . Data Cores Recovered . | . . . . Used . | . . . . Hacking Detections 9 | . 9 . . Full Trace Events 2 | . 2 . . Feedback Events 1 | . 1 . . Corruption 1 | . 1 . . Feedback Blocked . | . . . . Robot Schematics Acquired . | . . . . Robots Built . | . . . . Authchips . | . . . . Time . | . . . . Total Robot Build Rating . | . . . . Part Schematics Acquired . | . . . . Parts Built . | . . . . Authchips . | . . . . Time . | . . . . Total Part Build Rating . | . . . . Parts Repaired 1 | . 1 . . Time 13 | . 13 . . Parts Recycled . | . . . . Recycled Matter 15 | . 15 . . Retrieved Matter 15 | . 15 . . Retrieved Components 3 | . 3 . . Parts Scanalyzed . | . . . . Part Schematics Acquired . | . . . . Parts Damaged . | . . . . Bothacking | -11 -10 -10 -10 ------------ Run | Yrd Mat Min Exi Used RIF Installer . | . . . . Robots Hacked . | . . . . Non-combat . | . . . . Combat . | . . . . Robot Hacks Applied . | . . . . Relay Couplers Released . | . . . . Fabnet Peak Effective % . | . . . . Robots Rewired . | . . . . Allies Hacked . | . . . . Hacks Repelled . | . . . . Allies | -11 -10 -10 -10 -------- Run | Yrd Mat Min Exi Total Allies 2 | . . 2 . Largest Group 2 | . . 2 1 Highest-Rated Group 46 | . . 46 15 Highest-Rated Ally 31 | . . 31 15 Total Orders . | . . . . Ally Attacks 9 | . . 9 . Total Damage 105 | . . 105 . Kills 1 | . . 1 . Allies Corrupted . | . . . . Allies Melted . | . . . . Intel | -11 -10 -10 -10 ------- Run | Yrd Mat Min Exi Robot Analysis Total . | . . . . Derelict Logs Recovered . | . . . . Drone Launches . | . . . . Drone Recoveries . | . . . . Exploration | -11 -10 -10 -10 ------------- Run | Yrd Mat Min Exi Turns Passed 3568 | 67 1023 1286 1192 Spaces Moved 1945 | 63 636 633 613 Core 53 | 53 . . . Treads . | . . . . Legs 1892 | 10 636 633 613 Wheels . | . . . . Hover . | . . . . Flight . | . . . . Fastest Speed 50 | 50 120 190 120 Average Speed 168 | 61 138 190 188 Slowest Speed 190 | 120 190 190 190 Overloaded Moves . | . . . . Propulsion Burnouts . | . . . . Robots Hopped . | . . . . Cave-ins Triggered . | . . . . Exploration Rate (%) 73 | 7 95 98 93 Regions Visited 3 Branch Regions 2 Pre-discovered Areas 1 | . . . 1 Known Exits Taken 3 | 1 1 1 . Unknown Exits Taken . | . . . . Scrap Searched . | . . . . Spaces Dug . | . . . . Terrain Destroyed . | . . . . Melee . | . . . . Projectile . | . . . . AOE . | . . . . Terrain Rammed . | . . . . Walls Destroyed . | . . . . Machines Disabled . | . . . . Actions | -11 -10 -10 -10 --------- Run | Yrd Mat Min Exi Total 2141 | 82 730 686 643 Wait 69 | 1 41 27 . Move 1942 | 62 635 632 613 Hop . | . . . . Pick Up 24 | 7 9 3 5 Fast Attach 5 | . 5 . . Attach 16 | 7 4 1 4 Detach 8 | . 7 . 1 Swap 5 | . 2 3 . Drop 13 | . 1 4 8 Fire 57 | 5 26 16 10 Melee . | . . . . Ram . | . . . . Kick . | . . . . Crush . | . . . . Escape Stasis . | . . . . Rewire . | . . . . Trap 2 | . . . 2 Miscellaneous . | . . . . Route ------- -11/Scrapyard -10/Materials (discovered 5 exits: *Mat x3 / *Min x2) -10/Mines (discovered 4 exits: *Mat x2 / *Exi / *Sub) -10/Exiles (discovered 1 exit: *Min) History --------- Turn | Location | Event 2 | -11/Scrapyard | Met Revision 17 30 | -11/Scrapyard | Identified exit to Materials 30 | -11/Scrapyard | Discovered exit to Materials (range 8) 68 | -11/Scrapyard | Entered Materials 68 | -10/Materials | Evolved 1 slot: Utility x1 226 | -10/Materials | Repaired Lgt. Ion Engine 234 | -10/Materials | Identified exit to Materials 234 | -10/Materials | Discovered exit to Materials (range 10) 304 | -10/Materials | Build established: Hacker-Mutant 383 | -10/Materials | Identified exit to Mines 383 | -10/Materials | Discovered exit to Mines (range 15) 391 | -10/Materials | Discovered exit to Mines (range 14) 487 | -10/Materials | Discovered exit to Materials (range 14) 941 | -10/Materials | Discovered exit to Materials (range 16) 1091 | -10/Materials | Entered Mines 1131 | -10/Mines | Discovered exit to Materials (range 9) 1169 | -10/Mines | Assembled infested the area 1229 | -10/Mines | Discovered exit to Materials (range 16) 1421 | -10/Mines | Deemed a non-threat by the Exiles lab entrance 1421 | -10/Mines | Identified exit to Exiles 1421 | -10/Mines | Discovered exit to Exiles (range 6) 1532 | -10/Mines | Found a damaged Exp. Sensor Array with a note attached 1535 | -10/Mines | Found Prototype Device 1584 | -10/Mines | Found a hidden stash of uninstalled traps 1640 | -10/Mines | Identified exit to Subcaves 1640 | -10/Mines | Discovered exit to Subcaves (range 6) 2377 | -10/Mines | Entered Exiles 2377 | -10/Exiles | Accompanied by 1 ally 2436 | -10/Exiles | Met 8R-AWN 2468 | -10/Exiles | Met EX-HEX 2618 | -10/Exiles | Visited The Gauntlet 2822 | -10/Exiles | Met EX-DEC 2872 | -10/Exiles | Learned location of Zion (-7) 2993 | -10/Exiles | Identified exit to Mines 2993 | -10/Exiles | Discovered exit to Mines (range 10) 3105 | -10/Exiles | Met EX-BIN 3141 | -10/Exiles | Aligned with FarCom system 3143 | -10/Exiles | Given EX-Vault access code 3247 | -10/Exiles | Opened EX-Vault 3304 | -10/Exiles | Warned to stay clear of 0b10 Research branches 3318 | -10/Exiles | Identified Exp. Sensor Array 3375 | -10/Exiles | Found Prototype Flight Unit 3402 | -10/Exiles | Identified Flying Fortress v7 3510 | -10/Exiles | Attacked by the Exiles 3524 | -10/Exiles | Core integrity fell below 50% 3558 | -10/Exiles | Core integrity fell below 20% 3569 | -10/Exiles | Destroyed by 8R-AWN with 8R-AWN's Boregun Last Messages --------------- HV Slug penetrates as-57642. as-57642 suffers critical hit (Destroy). as-57642 destroyed. HV Slug penetrates as-34472. as-34472 suffers critical hit (Destroy). as-34472 destroyed. Penetrated by HV Slug. HV Slug penetrates Wall. as-38253 destroyed. Penetrated by HV Slug. HV Slug penetrates Earth. Penetrated by HV Slug. HV Slug penetrates Earth. as-41719 knocked back. Penetrated by HV Slug. HV Slug penetrates Earth. HV Slug penetrates FarCom Aligner. HV Slug penetrates BIN's Workstation. as-41719 knocked back. Penetrated by HV Slug. Map ----- +----------------------------------------------------+ | ????????????## ##""""""##????????????????????? | | ????????????## ## """##????????????????????? | | ????????????## X""##????????????????????? | | ????########## ## """##????????????????????? | | ????########## ##""""""##????????????????????? | | ????##""""""## ##########????????????????????? | | ????##"""" ## ##########????????????????????? | | ????##""X" ##????????????????????????????? | | ????##" ##????????????????????????????? | | ????##" ## ############??????????????????? | | ????##""""""## ############??????????????????? | | ????###"###### ###"""""""##??????????????????? | | ???? "###### ###"""""""##??????????????????? | | ??##""" ???### ###"""""""##??????????????????? | | ??##""" ???### ###"" """"##??????????????????? | | ??##""" ???##" """##??????????????????? | | ?????###???##" """##??????????????????? | | ?????###???##" """##??????????????????? | | ######?????##" """##??????????????????? | | ######?????##" """## ?????????????????? | | """##?????##" """## ?????????????????? | | """##?????### g%"""""" #?????????????? | | ##?????### %%% """#######?????????????? | | ##??????##" "X%%""""" ##?????????????? | | "##??????##" %"" aa # "?"##?????????????? | | ""##?????###" """""@"" # ??????????????????? | | ""##????####" ######;#### ??????????????????? | | ###########"" ###### ####??????????????????? | | ##########"" ###??## ??????????????????????? | | #"###""""""" ^####?## ##########????????????? | | """""" " "" ##################???????????? | | "" """ " #####"""""""""####??????????? | | " " """ """"###??????????? | | " " ##??????????? | | ^ """##?????????## | | " "###???????### | | "#####?????### | | ""####????###" | | """""" """##??#####" | | ######""" = "###?#### | | ""###########"""% ###### | | """####??#######""" ##### | | """####???????###"""" ### | | ""##############"" | | ##############"""" # | | ## ####""" ""# | | """" #"""## | | ####### | | ######## | | " ####????? | +----------------------------------------------------+ Best States ------------- Heat Dissipation 25 Energy Generation 10 Energy Capacity 325 Matter Stores 300 Matter Capacity 300 Sight Range 16 Terrain Scan Range 14 Terrain Scan Density 10 Resistance: KI 35 Resistance: TH 35 Resistance: EX 35 Resistance: EM 35 Resistance: I 35 Resistance: S 35 Resistance: P 35 Evasion (%) 55 Targeting Accuracy 5 Offensive Hacking 20 Item Schematics ----------------- None Robot Schematics ------------------ None Fabricated ------------ Nothing Alien Tech Used ----------------- None Achievements -------------- None Challenges ------------ None Game ------ Seed SuperchargedNovaScreen Manual? 0 Play Time 00:46:20 Cumulative 4.9 hours Start 2024.04.01 @ 01:11:48 End 2024.04.01 @ 01:59:10 Sessions 1 Manual Loads 0 Difficulty Explorer Special Mode None Game No. 2 Rogue 0 Adventurer 0 Explorer 2 Win Type - Total 0 Types 0/0/0/0/0/0/0/0/0 Lore% 8 Gallery% 6 Achievement% 8 Wizard Run 0 Options --------- Layout 2 ASCII 0 Keyboard 0 Movement Mouse Keybinds 0 Fullscreen 2 Font 48/Smallcaps Map View 50x44 Zoom Use 0% Tactical HUD 0 Map Filters NONE Filters NONE Steam 1 RUN: 1fa12339-7c38-4bfb-be23-aac4605db5f6